[Event "EICC 2025"]
[Site "Eforie-Nord"]
[Date "2025.03.15"]
[Round "1.34"]
[White "Lorenz, Roger"]
[Black "Blohberger, Felix"]
[Result "0-1"]
[Annotator "ChessBase"]
[ECO "E40"]
[WhiteElo "2188"]
[BlackElo "2534"]
[PlyCount "54"]
[EventDate "2025.03.14"]
[EventType "swiss"]
[EventCountry "ROU"]
[SourceTitle "playchess.com"]
[Source "ChessBase"]
[SourceQuality "1"]
[TimeControl "40/5400+30:1800+30"]

1. d4 {[%emt 0:00:02]} e6 {[%emt 0:00:11]} 2. c4 {[%emt 0:00:07]} Nf6 {[%emt 0:00:24]} 3. Nc3 {[%emt 0:00:04]} Bb4 {[%emt 0:00:04]} 4. e3 {[%emt 0:00:48]} O-O {[%emt 0:00:59]} 5. Bd3 {[%emt 0:00:08]} Re8 {[%emt 0:00:47]} 6. Nf3 {[%emt 0:09:55]} Bxc3+ {[%emt 0:03:25]} 7. bxc3 {[%emt 0:01:54]} d6 {[%emt 0:00:04]} 8. O-O {[%emt 0:01:52]} e5 {[%emt 0:06:17]} 9. dxe5 {[%emt 0:07:31]} dxe5 {[%emt 0:00:18]} 10. Nxe5 {[%emt 1:13:09]} Qe7 {[%emt 0:02:58]} 11. f4 {[%emt 0:00:00]} Nbd7 {[%emt 0:06:02]} 12. Nxd7 Bxd7 13. e4 {[%emt 0:00:00]} Rad8 {[%emt 0:11:02]} 14. Qc2 {[%emt 0:02:00]} Nxe4 {[%emt 0:20:38]} 15. Re1 {[%emt 0:00:00]} Bc6 {[%emt 0:02:42]} 16. Be3 {[%emt 0:00:00]} Qf6 {[%emt 0:18:40]} 17. Rac1 {[%emt 0:00:00]} h5 {[%emt 0:01:20]} 18. c5 {[%emt 0:00:00]} h4 {[%emt 0:04:57]} 19. Bc4 {[%emt 0:00:00]} Re7 {[%emt 0:03:00]} 20. Rcd1 {[%emt 0:00:00]} Rde8 {[%emt 0:03:38]} 21. Bd4 {[%emt 0:00:00]} Qxf4 {[%emt 0:00:55]} 22. Rf1 {[%emt 0:00:00]} Qg5 {[%emt 0:02:48]} 23. Qc1 {[%emt 0:00:00]} Qxc1 {[%emt 0:00:59]} 24. Rxc1 {[%emt 0:00:00]} Nd2 {[%emt 0:00:14]} 25. Bb3 {[%emt 0:00:00]} Nxf1 {[%emt 0:00:21]} 26. Rxf1 {[%emt 0:00:00]} Bb5 {[%emt 0:00:36]} 27. Rf4 {[%emt 0:00:00]} Re1+ {[%emt 0:00:06]} 0-1

[Event "EICC 2025"]
[Site "Eforie-Nord"]
[Date "2025.03.15"]
[Round "1.35"]
[White "Amar, Elham"]
[Black "Arsenie, Cristian Marc"]
[Result "1-0"]
[Annotator "ChessBase"]
[ECO "B90"]
[WhiteElo "2533"]
[BlackElo "2185"]
[PlyCount "85"]
[EventDate "2025.03.14"]
[EventType "swiss"]
[EventCountry "ROU"]
[SourceTitle "playchess.com"]
[Source "ChessBase"]
[SourceQuality "1"]
[TimeControl "40/5400+30:1800+30"]

1. e4 {[%emt 0:00:05]} c5 {[%emt 0:00:06]} 2. Nf3 {[%emt 0:00:07]} d6 {[%emt 0:00:05]} 3. d4 {[%emt 0:00:05]} cxd4 {[%emt 0:00:05]} 4. Nxd4 {[%emt 0:00:04]} Nf6 {[%emt 0:00:06]} 5. Nc3 {[%emt 0:00:06]} a6 {[%emt 0:00:04]} 6. Be3 {[%emt 0:00:13]} e5 {[%emt 0:00:08]} 7. Nb3 {[%emt 0:00:05]} Be7 {[%emt 0:00:06]} 8. f3 {[%emt 0:00:51]} Be6 {[%emt 0:00:10]} 9. Qd2 {[%emt 0:00:59]} h5 {[%emt 0:00:09]} 10. Nd5 {[%emt 0:02:24]} Nxd5 {[%emt 0:01:23]} 11. exd5 {[%emt 0:00:10]} Bf5 {[%emt 0:00:06]} 12. Be2 {[%emt 0:00:17]} a5 {[%emt 0:00:15]} 13. a4 {[%emt 0:03:31]} O-O {[%emt 0:00:12]} 14. O-O {[%emt 0:01:37]} Nd7 {[%emt 0:00:09]} 15. Bb5 {[%emt 0:16:58]} Nf6 {[%emt 0:02:14]} 16. Nc1 {[%emt 0:05:35]} h4 {[%emt 0:14:15]} 17. Ne2 {[%emt 0:00:47]} Nh5 {[%emt 0:09:32]} 18. c4 {[%emt 0:07:59]} Bd7 {[%emt 0:04:42]} 19. b4 {[%emt 0:05:18]} Bxb5 {[%emt 0:02:44]} 20. cxb5 {[%emt 0:00:49]} axb4 {[%emt 0:03:25]} 21. Qxb4 {[%emt 0:00:06]} Bg5 {[%emt 0:02:00]} 22. Bf2 {[%emt 0:00:33]} Qf6 {[%emt 0:15:50]} 23. Qg4 {[%emt 0:07:31]} g6 {[%emt 0:03:46]} 24. a5 {[%emt 0:00:44]} Qe7 {[%emt 0:10:04]} 25. a6 {[%emt 0:01:40]} f5 {[%emt 0:00:59]} 26. Qb4 {[%emt 0:01:28]} e4 {[%emt 0:02:52]} 27. fxe4 {[%emt 0:03:52]} fxe4 {[%emt 0:00:59]} 28. Bd4 {[%emt 0:00:46]} e3 {[%emt 0:04:46]} 29. Rxf8+ {[%emt 0:03:17]} Qxf8 {[%emt 0:02:45]} 30. Rf1 {[%emt 0:00:07]} Qe7 {[%emt 0:00:42]} 31. a7 {[%emt 0:02:18]} h3 {[%emt 0:04:00]} 32. Qb1 {[%emt 0:03:17]} Kh7 {[%emt 0:01:26]} 33. Rf3 {[%emt 0:05:13]} hxg2 {[%emt 0:00:38]} 34. b6 {[%emt 0:00:52]} Rf8 {[%emt 0:04:25]} 35. Rxf8 {[%emt 0:04:53]} Qxf8 {[%emt 0:00:02]} 36. Qe1 {[%emt 0:00:06]} Qc8 {[%emt 0:11:11]} 37. Ba1 {[%emt 0:05:25]} Qf8 {[%emt 0:00:55]} 38. Kxg2 {[%emt 0:01:02]} Qc8 {[%emt 0:01:20]} 39. h3 {[%emt 0:00:56]} Qe8 {[%emt 0:00:40]} 40. Qc3 {[%emt 0:02:16]} Qe4+ {[%emt 0:00:30]} 41. Kg1 {[%emt 0:30:12]} Nf6 {[%emt 0:11:58]} 42. a8=Q {[%emt 0:00:00]} Qh4 {[%emt 0:01:01]} 43. Qc7+ {[%emt 0:00:00]} 1-0

[Event "EICC 2025"]
[Site "Eforie-Nord"]
[Date "2025.03.15"]
[Round "1.35"]
[White "Veress, Armand"]
[Black "Lagarde, Maxime"]
[Result "0-1"]
[Annotator "TA"]
[ECO "B67"]
[WhiteElo "2292"]
[BlackElo "2615"]
[PlyCount "100"]
[EventDate "2025.03.14"]
[EventType "swiss"]
[EventCountry "ROU"]
[SourceTitle "playchess.com"]
[Source "ChessBase"]
[SourceQuality "1"]
[TimeControl "40/5400+30:1800+30"]

{[%evp 18,100,22,20,23,35,26,22,18,13,12,25,15,0,58,-46,-46,-45,-56,-50,-62,-58,-19,-30,-34,-33,-29,-75,-74,-116,-112,-125,-91,-91,-75,-84,-16,-16,-16,-47,-34,-52,0,0,0,0,0,0,0,0,0,0,0,0,0,0,0,0,0,0,-16,-179,-145,-404,-371,-429,-421,-604,-349,-476,-417,-459,-441,-433,-431,-869,-825,-761,-736,-906,-939,-1527,-1518,-29982,-29983]} 1. e4 {[%emt 0:00:05]} c5 {[%emt 0:00:04]} 2. Nf3 {[%emt 0:00:08]} d6 {[%emt 0:00:03]} 3. d4 {[%emt 0:00:11]} cxd4 {[%emt 0:00:04]} 4. Nxd4 {[%emt 0:00:06]} Nf6 {[%emt 0:00:04]} 5. Nc3 {[%emt 0:00:07]} Nc6 {[%emt 0:00:22]} 6. Bg5 {[%emt 0:00:23]} e6 {[%emt 0:00:13]} 7. Qd2 {[%emt 0:00:22]} a6 {[%emt 0:00:20]} 8. O-O-O {[%emt 0:00:30]} Bd7 {[%emt 0:00:11]} 9. f3 {[%emt 0:01:16]} Nxd4 {[%emt 0:00:51]} 10. Qxd4 {[%emt 0:00:10]} Be7 {[%emt 0:00:05] B67: Sicilian: Richter-Rauzer: 7...a6 8 0-0-0 Bd7, lines without 9 f4 Be7.} 11. g4 {[%emt 0:14:51]} h5 {[%emt 0:02:09]} 12. gxh5 {[%emt 0:02:54]} Nxh5 {[%emt 0:00:06] The position is equal.} 13. Bxe7 {[%emt 0:03:43]} Qxe7 {[%emt 0:00:04]} 14. Rg1 {[%emt 0:06:23]} (14. Qxd6 $2 Qxd6 15. Rxd6 Ng3 $19) 14... Bc6 {[%emt 0:00:06]} 15. Bc4 {[%emt 0:07:40][%cal Oc1b1]} b5 $146 {[%emt 0:18:45] [#]} (15... O-O-O $11) (15... O-O-O 16. Qa7 Qc7 17. Rg5 d5 18. exd5 Qf4+ 19. Kb1 Qxg5 20. dxc6 Rxd1+ 21. Nxd1 Qd2 22. cxb7+ Kd7 23. b8=Q+ Kc6 24. Qac7# {1-0 Isaakidis,A (2209)-Kourouyiannis,F (1762) CYP-ch op Nikosia 2021 (5)}) 16. Bd5 {[%emt 0:12:08]} Bxd5 $1 $15 {[%emt 0:04:27]} (16... exd5 17. exd5 Qc7 (17... Bd7 $2 18. Rge1 $18) 18. dxc6 Qxc6 19. Ne4 $18 (19. Qxd6 Qxd6 20. Rxd6 Kf8 $16)) 17. exd5 {[%emt 0:00:16]} e5 {[%emt 0:00:13]} 18. Qb6 {[%emt 0:01:25]} Qd8 {[%emt 0:00:37]} 19. Qc6+ {[%emt 0:05:23]} Kf8 {[%emt 0:00:42]} (19... Ke7 {keeps more tension.} 20. Ne4 g6 21. Rge1 Qb8) 20. Ne4 {[%emt 0:01:07]} Rh6 {[%emt 0:00:06]} 21. Kb1 {[%emt 0:03:21]} b4 {[%emt 0:01:55]} 22. Rg5 {[%emt 0:05:41]} (22. Rd2 $11) 22... a5 $17 {[%emt 0:01:07]} 23. Rf5 {[%emt 0:04:28] Qb7 would now be deadly.} Rc8 {[%emt 0:08:30]} 24. Qb7 {[%emt 0:02:50][%csl Gf5][%cal Rb7f7]} Qc7 {[%emt 0:00:17]} 25. Qxc7 {[%emt 0:02:04]} Rxc7 {[%emt 0:00:04]} 26. Nxd6 {[%emt 0:06:49]} Rxd6 {[%emt 0:00:04]} (26... Nf4 $17 27. Nb5 Rc5) 27. Rxh5 {[%emt 0:00:06][%mdl 4096] Endgame KRR-KRR. White is a pawn up.} f6 {[%emt 0:00:04]} 28. a3 {[%emt 0:06:00]} (28. Rh4 {simplifies} Rcd7 29. c4 bxc3 30. bxc3 Rxd5 31. Rxd5 Rxd5 32. Kc2) 28... bxa3 $1 {[%emt 0:01:58]} 29. b3 {[%emt 0:00:39] [#]} a4 {[%emt 0:04:55]} 30. b4 $11 {[%emt 0:02:44]} a2+ {[%emt 0:19:05]} 31. Kxa2 {[%emt 0:02:10]} Rxc2+ {[%emt 0:01:55]} 32. Ka3 {[%emt 0:01:14]} Rc3+ {[%emt 0:00:35]} 33. Kxa4 {[%emt 0:00:04]} Rxf3 {[%emt 0:00:13]} 34. Rh8+ {[%emt 0:02:31]} Ke7 {[%emt 0:03:08]} 35. Rg8 {[%emt 0:00:26]} f5 {[%emt 0:03:00]} 36. Rxg7+ {[%emt 0:02:50]} Kf6 {[%emt 0:00:04]} 37. Rg3 {[%emt 0:01:50]} Rf2 {[%emt 0:01:17]} 38. Kb5 {[%emt 0:03:10]} e4 {[%emt 0:01:31][%cal Of5f4]} 39. Kc5 $2 {[%emt 0:01:10]} (39. Rg8 $11) 39... Ke5 $19 {[%emt 0:00:26]} 40. Rc3 {[%emt 0:00:26][%mdl 8192] Wards off Rc2. Now White is beyond hope.} (40. b5 $17) 40... Rxh2 {[%emt 0:06:27]} 41. b5 {[%emt 0:09:58]} Rh8 {[%emt 0:00:08]} 42. Rb3 {[%emt 0:09:20]} (42. Kb4 $142 f4 (42... Rxd5 $2 43. Rxd5+ Kxd5 44. Rc5+ Ke6 45. Kc4 $19) 43. Rc7 Rxd5 44. Re1 (44. Rxd5+ $2 Kxd5 45. Rc5+ Kd4 $19)) 42... Rc8+ {[%emt 0:01:48]} 43. Kb4 {[%emt 0:00:07]} f4 {[%emt 0:01:21]} (43... Rxd5 $2 44. Rh1 $19 (44. Rxd5+ $2 Kxd5 45. b6 Kd4 $19)) 44. Rh3 {[%emt 0:01:22]} e3 {[%emt 0:01:07][%cal Oe5e4]} (44... Rxd5 $2 45. Rh5+ Ke6 46. Rdxd5 $18 (46. Rhxd5 f3 $18)) 45. Rh7 {[%emt 0:00:46]} Re8 {[%emt 0:04:26] Wards off Re7+} (45... Rxd5 46. Rh5+ Ke4 47. Rdxd5 $18 (47. Rhxd5 e2 $11)) 46. Rh5+ {[%emt 0:03:53]} (46. Kc5 $142 e2 (46... Rc8+ 47. Kb4 $17) 47. Rh5+ Kf6 (47... Ke4 48. Re1 $11) 48. Re1) 46... Ke4 {[%emt 0:00:06] Strongly threatening ...e2.} 47. Kc5 {[%emt 0:00:13]} Rf6 {[%emt 0:02:45]} (47... e2 48. Re1 $11) 48. d6 {[%emt 0:03:43]} Rc8+ {[%emt 0:00:23]} 49. Kb6 {[%emt 0:01:56]} e2 {[%emt 0:00:20]} 50. Rdd5 {[%emt 0:02:28]} Re8 {[%emt 0:01:16] Weighted Error Value: White=0.72/Black=0.17 (very precise)   Loses game:     	White=2     	---        Mistake:       	White=4     	Black=3      Inaccurate:     	White=3     	Black=1      OK:         	White=14    	Black=15     Best:        	White=6     	Black=5      Strong:       	---       	Black=2} (50... e1=B $2 {perishes.} 51. Rhe5+ Kf3 52. Rxe1 $18) ({Inferior is} 50... Rxd6+ 51. Rxd6 Re8 52. Rh1 $11) 0-1

[Event "EICC 2025"]
[Site "Eforie-Nord"]
[Date "2025.03.15"]
[Round "1.36"]
[White "Pichot, Alan"]
[Black "Nedelcu, Teodor-Cosmin"]
[Result "1/2-1/2"]
[Annotator "TA"]
[ECO "B40"]
[WhiteElo "2613"]
[BlackElo "2291"]
[PlyCount "113"]
[EventDate "2025.03.14"]
[EventType "swiss"]
[EventCountry "ROU"]
[SourceTitle "playchess.com"]
[Source "ChessBase"]
[SourceQuality "1"]
[TimeControl "40/5400+30:1800+30"]

{[%evp 9,113,22,48,41,41,36,39,38,54,51,97,90,95,82,84,70,70,50,59,65,91,70,79,76,88,83,100,89,199,169,168,182,176,182,176,175,172,85,192,162,180,169,325,262,262,262,252,234,198,148,158,158,152,148,147,146,113,122,139,115,185,185,191,189,200,193,202,146,156,120,122,130,208,211,214,209,197,108,108,108,115,119,122,108,116,93,93,0,0,0,0,0,0,-31,-43,-94,-8,0,0,-72,0,0,0,0,0,0]} 1. e4 {[%emt 0:00:07]} c5 {[%emt 0:00:07]} 2. Nf3 {[%emt 0:00:10]} e6 {[%emt 0:00:05]} 3. Nc3 {[%emt 0:00:12]} Nc6 {[%emt 0:00:12]} 4. h3 {[%emt 0:00:24]} h6 $146 {[%emt 0:01:09]} (4... a6 5. g3 b5 6. Bg2 Bb7 7. O-O b4 8. Na4 Nf6 9. Re1 Be7 10. d4 cxd4 11. Nxd4 Nxd4 12. Qxd4 {1-0 Praggnanandhaa,R (2737)-Erigaisi,A (2799) Tata Steel India Blitz 2024 (18)}) 5. Bb5 {[%emt 0:03:27]} d5 {[%emt 0:04:05]} 6. exd5 {[%emt 0:10:02] B40: Sicilian: 2...e6, Unusual lines.} exd5 {[%emt 0:00:06]} 7. O-O {[%emt 0:06:45]} Be6 {[%emt 0:01:05]} 8. Ne5 {[%emt 0:05:08] White is slightly better.} Nge7 {[%emt 0:01:54]} 9. Re1 {[%emt 0:02:08]} g6 {[%emt 0:07:30]} (9... g5 $14) 10. d4 {[%emt 0:04:56]} Bg7 {[%emt 0:00:59]} 11. dxc5 {[%emt 0:02:27]} O-O {[%emt 0:00:24]} 12. Bxc6 {[%emt 0:03:41]} bxc6 {[%emt 0:00:04]} 13. Na4 {[%emt 0:01:35]} Qb8 {[%emt 0:07:26]} 14. Nf3 {[%emt 0:02:30]} d4 {[%emt 0:07:39]} 15. Nxd4 {[%emt 0:06:57]} Rd8 {[%emt 0:00:07][%cal Bf8d8,Bd8d4,Bd4f4,Bf4f5][%mdl 32]} 16. c3 {[%emt 0:00:07]} Nf5 {[%emt 0:00:38]} 17. Be3 {[%emt 0:01:49]} Nxe3 {[%emt 0:07:49]} 18. Rxe3 {[%emt 0:02:58]} (18. fxe3 {with more complications.} Qg3 19. b3 Bxh3 20. Qf3) 18... Bc4 {[%emt 0:01:26]} (18... Bxd4 $16 19. cxd4 Qf4) 19. Qf3 {[%emt 0:13:47]} Bxd4 {[%emt 0:03:28]} 20. cxd4 {[%emt 0:00:05]} Rxd4 {[%emt 0:00:08]} 21. b3 {[%emt 0:00:25]} (21. Qxc6 $2 Bb5 22. Qf3 (22. Qf6 $2 Rxa4 23. Re7 Rf4 $19) 22... Rxa4 $19 (22... Bxa4 23. b3 $15)) 21... Bd5 {[%emt 0:03:09]} 22. Qf6 {[%emt 0:00:22]} Rf4 {[%emt 0:01:55]} 23. Qe5 {[%emt 0:02:49]} (23. Qe7 $18 {has better winning chances.}) 23... Qb4 {[%emt 0:01:33]} (23... Qxe5 $16 24. Rxe5 Rd4) 24. Rd1 {[%emt 0:00:40]} Rf5 {[%emt 0:01:05]} 25. Qd4 {[%emt 0:01:33]} Qa5 {[%emt 0:01:36]} (25... Rf4 26. Qxb4 Rxb4) 26. Nc3 {[%emt 0:01:29]} Qd8 {[%emt 0:02:53]} 27. g4 {[%emt 0:10:26]} Qg5 {[%emt 0:02:41]} 28. Rde1 {[%emt 0:00:06] Threatening mate with Re8+. Active counter play!} Kh7 {[%emt 0:01:49]} 29. Re8 {[%emt 0:03:29] Prevents Bf3.} (29. Re4 $18 {[%cal Oh3h4] Black must now prevent h4!.} Rg8 (29... Bxe4 $2 30. Nxe4 Qd8 31. Qxd8 $18) 30. R1e3 (30. Nxd5 Rxd5 31. Qc4 h5 $16)) 29... Rxe8 $16 {[%emt 0:00:31]} 30. Rxe8 {[%emt 0:00:04][%csl Ge8][%cal Rd4h8]} Qc1+ {[%emt 0:02:39]} 31. Qd1 {[%emt 0:04:20] The board is on fire.} Qxc3 {[%emt 0:06:13]} 32. Re3 {[%emt 0:00:05]} Qf6 {[%emt 0:01:11]} 33. gxf5 {[%emt 0:00:05]} Qxf5 {[%emt 0:00:03][%mdl 4096] Endgame KQR-KQB} 34. Kf1 {[%emt 0:01:31]} h5 {[%emt 0:00:39]} (34... Be6 $16) 35. Qd3 $18 {[%emt 0:02:50]} Qf4 {[%emt 0:02:20]} 36. Ke2 {[%emt 0:00:26]} Qb4 {[%emt 0:02:53] [#]} 37. Qc3 {[%emt 0:01:22] Dodges Qxc5} Qa3 {[%emt 0:00:01]} 38. Qc2 {[%emt 0:02:04]} Qa6+ {[%emt 0:00:13]} 39. Kd2 {[%emt 0:01:09]} Qf1 {[%emt 0:00:29]} 40. Kc3 {[%emt 0:00:11]} Qa1+ {[%emt 0:00:20]} (40... Bg2 $16 {was called for.} 41. Qd2 Qa1+ 42. Kb4 Qf6) 41. Kb4 {[%emt 0:30:52]} Be6 {[%emt 0:30:56]} 42. Ka3 {[%emt 0:03:50]} Qf1 {[%emt 0:00:54]} 43. Qc3 {[%emt 0:00:00] Wards off Bxh3} (43. Qd2 $18) 43... Qxf2 $16 {[%emt 0:00:00]} 44. Rd3 {[%emt 0:00:00]} Qf1 {[%emt 0:00:00]} 45. h4 {[%emt 0:00:00]} Bd5 {[%emt 0:00:00]} 46. Rd4 {[%emt 0:00:00]} Qe2 {[%emt 0:00:00]} 47. Ra4 {[%emt 0:00:00]} Qe7 {[%emt 0:00:00]} 48. Qd4 {[%emt 0:00:00]} (48. Rb4 $16) 48... f6 $1 $11 {[%emt 0:00:00]} 49. Rb4 {[%emt 0:00:00]} g5 {[%emt 0:00:00]} 50. Qd3+ {[%emt 0:00:00]} Kh6 {[%emt 0:00:00]} 51. Qd4 {[%emt 0:00:00]} g4 {[%emt 0:00:44][%mdl 1024] Black has compensation.} 52. Rb8 {[%emt 0:00:00]} (52. Qc3 $15) 52... Kg6 {[%emt 0:00:28]} (52... Kg7 $17 53. Qf2 Qe5 54. Rb7+ Kg6) 53. Rh8 {[%emt 0:00:00]} Qe5 {[%emt 0:13:11]} 54. Qd2 {[%emt 0:00:00] [#]} (54. Qd3+ $11 f5 55. Rd8) 54... Be6 {[%emt 0:03:28]} (54... g3 $1 $17 {[%cal Rg3g2] Threatens to win with ...g2.} 55. Qh6+ Kf5 56. Qxh5+ Kf4) 55. Qh6+ {[%emt 0:04:10] The position is equal.} Kf5 {[%emt 0:00:06]} 56. Qxh5+ {[%emt 0:00:15]} Kf4 {[%emt 0:01:57]} 57. Qh6+ {[%emt 0:00:36] Black escapes into a draw.   Weighted Error Value: White=0.20 (precise) /Black=0.21 (precise)   Mistake:       	White=6     	Black=8      Inaccurate:     	White=1     	Black=1      OK:         	White=17    	Black=18     Best:        	White=3     	Black=6      Strong:       	---       	Black=1} 1/2-1/2

[Event "EICC 2025"]
[Site "Eforie-Nord"]
[Date "2025.03.15"]
[Round "1.36"]
[White "Sapocinic, Semion"]
[Black "Paichadze, Luka"]
[Result "0-1"]
[Annotator "ChessBase"]
[ECO "A14"]
[WhiteElo "2182"]
[BlackElo "2532"]
[PlyCount "108"]
[EventDate "2025.03.14"]
[EventType "swiss"]
[EventCountry "ROU"]
[SourceTitle "playchess.com"]
[Source "ChessBase"]
[SourceQuality "1"]
[TimeControl "40/5400+30:1800+30"]

1. c4 {[%emt 0:00:06]} e6 {[%emt 0:00:24]} 2. Nf3 {[%emt 0:00:25]} Nf6 {[%emt 0:00:13]} 3. g3 {[%emt 0:00:08]} d5 {[%emt 0:00:31]} 4. Bg2 {[%emt 0:00:09]} Be7 {[%emt 0:00:28]} 5. O-O {[%emt 0:00:10]} O-O {[%emt 0:00:08]} 6. b3 {[%emt 0:00:33]} d4 {[%emt 0:01:05]} 7. e3 {[%emt 0:05:10]} c5 {[%emt 0:00:07]} 8. exd4 {[%emt 0:03:32]} cxd4 {[%emt 0:00:04]} 9. d3 {[%emt 0:01:09]} Nc6 {[%emt 0:00:44]} 10. Bg5 {[%emt 0:04:35]} e5 {[%emt 0:05:51]} 11. Bxf6 {[%emt 0:09:21]} Bxf6 {[%emt 0:00:06]} 12. Nbd2 {[%emt 0:00:08]} g6 {[%emt 0:07:43]} 13. a3 {[%emt 0:02:01]} a5 {[%emt 0:00:28]} 14. c5 {[%emt 0:08:36]} Be6 {[%emt 0:07:56]} 15. Nc4 {[%emt 0:05:18]} Bxc4 {[%emt 0:04:52]} 16. bxc4 {[%emt 0:00:31]} Be7 {[%emt 0:00:45]} 17. Qb3 {[%emt 0:03:49]} Qc7 {[%emt 0:12:30]} 18. Qb5 {[%emt 0:02:56]} a4 {[%emt 0:08:32]} 19. Rfb1 {[%emt 0:09:33]} Rfb8 {[%emt 0:00:35]} 20. Nd2 {[%emt 0:03:51]} Ra5 {[%emt 0:01:43]} 21. Qb6 {[%emt 0:00:08]} Qxb6 {[%emt 0:00:12]} 22. cxb6 {[%emt 0:00:39]} Kg7 {[%emt 0:06:06]} 23. Bd5 {[%emt 0:05:44]} f5 {[%emt 0:01:33]} 24. Re1 {[%emt 0:05:30]} Bd6 {[%emt 0:07:11]} 25. Bxc6 {[%emt 0:10:14]} bxc6 {[%emt 0:00:14]} 26. c5 {[%emt 0:00:02]} Rxc5 {[%emt 0:06:51]} 27. Nc4 {[%emt 0:00:09]} Rd5 {[%emt 0:05:33]} 28. f4 {[%emt 0:01:50]} Bc5 {[%emt 0:05:09]} 29. Rab1 {[%emt 0:07:45]} e4 {[%emt 0:00:37]} 30. Kf1 {[%emt 0:01:39]} e3 {[%emt 0:10:14]} 31. Rb2 {[%emt 0:02:01]} Rb7 {[%emt 0:01:24]} 32. Reb1 {[%emt 0:00:58]} Be7 {[%emt 0:01:54]} 33. Ke2 {[%emt 0:00:42]} Kf6 {[%emt 0:00:47]} 34. Kf3 {[%emt 0:00:59]} Ke6 {[%emt 0:00:17]} 35. Ke2 {[%emt 0:00:29]} Bf8 {[%emt 0:02:03]} 36. Kf3 {[%emt 0:00:14]} Be7 {[%emt 0:00:22]} 37. Ke2 {[%emt 0:01:05]} Kf6 {[%emt 0:01:50]} 38. Kf3 {[%emt 0:02:11]} g5 {[%emt 0:00:31]} 39. Rc2 {[%emt 0:01:52]} Rb5 {[%emt 0:01:06]} 40. fxg5+ {[%emt 0:00:24]} Kxg5 {[%emt 0:00:18]} 41. Rcb2 {[%emt 0:30:09]} Rd5 {[%emt 0:05:33]} 42. Rc2 {[%emt 0:00:00]} Kf6 {[%emt 0:01:37]} 43. Kf4 {[%emt 0:00:00]} Rb5 {[%emt 0:02:40]} 44. Rbb2 {[%emt 0:00:00]} Ke6 {[%emt 0:04:42]} 45. h3 {[%emt 0:00:00]} Bc5 {[%emt 0:01:09]} 46. g4 {[%emt 0:00:00]} fxg4 {[%emt 0:00:36]} 47. hxg4 {[%emt 0:00:00]} Bxb6 {[%emt 0:05:43]} 48. Ke4 {[%emt 0:00:00]} Bc5 {[%emt 0:02:27]} 49. Ra2 {[%emt 0:00:00]} Rg7 {[%emt 0:00:51]} 50. Rh2 {[%emt 0:00:00]} Rxg4+ {[%emt 0:00:23]} 51. Kf3 {[%emt 0:00:00]} Rg6 {[%emt 0:00:13]} 52. Rxh7 {[%emt 0:00:00]} Bd6 {[%emt 0:00:28]} 53. Rh4 {[%emt 0:00:00]} Rf5+ {[%emt 0:01:05]} 54. Ke4 {[%emt 0:00:00]} Bg3 {[%emt 0:01:48]} 0-1

[Event "EICC 2025"]
[Site "Eforie-Nord"]
[Date "2025.03.15"]
[Round "1.37"]
[White "Bernadskiy, Vitaliy"]
[Black "Maximov, Oleg"]
[Result "1-0"]
[Annotator "ChessBase"]
[ECO "B08"]
[WhiteElo "2529"]
[BlackElo "2180"]
[PlyCount "82"]
[EventDate "2025.03.14"]
[EventType "swiss"]
[EventCountry "ROU"]
[SourceTitle "playchess.com"]
[Source "ChessBase"]
[SourceQuality "1"]
[TimeControl "40/5400+30:1800+30"]

1. d4 {[%emt 0:00:03]} Nf6 {[%emt 0:00:15]} 2. Nf3 {[%emt 0:00:48]} d6 {[%emt 0:00:21]} 3. Nc3 {[%emt 0:00:19]} g6 {[%emt 0:00:24]} 4. e4 {[%emt 0:00:11]} Bg7 {[%emt 0:00:30]} 5. Be3 {[%emt 0:01:49]} O-O {[%emt 0:00:47]} 6. h3 {[%emt 0:00:19]} c6 {[%emt 0:01:08]} 7. a4 {[%emt 0:00:12]} a5 {[%emt 0:02:14]} 8. Be2 {[%emt 0:02:20]} Na6 {[%emt 0:01:26]} 9. O-O {[%emt 0:00:08]} Nb4 {[%emt 0:01:16]} 10. Nd2 {[%emt 0:00:05]} d5 {[%emt 0:05:25]} 11. e5 {[%emt 0:01:08]} Nd7 {[%emt 0:02:23]} 12. f4 {[%emt 0:05:09]} c5 {[%emt 0:12:03]} 13. Nb5 {[%emt 0:01:02]} cxd4 {[%emt 0:12:02]} 14. Nxd4 {[%emt 0:00:19]} Nc5 {[%emt 0:04:47]} 15. c3 {[%emt 0:05:36]} Nba6 {[%emt 0:00:24]} 16. N4b3 {[%emt 0:05:24]} b6 {[%emt 0:05:24]} 17. Nd4 {[%emt 0:00:20]} Bb7 {[%emt 0:04:11]} 18. h4 {[%emt 0:02:26]} Ne4 {[%emt 0:05:39]} 19. Nxe4 {[%emt 0:03:24]} dxe4 {[%emt 0:02:33]} 20. h5 {[%emt 0:00:29]} e6 {[%emt 0:01:51]} 21. hxg6 {[%emt 0:01:01]} hxg6 {[%emt 0:00:05]} 22. Nb5 {[%emt 0:03:44]} Nc5 {[%emt 0:00:37]} 23. Nd6 {[%emt 0:00:20]} Bd5 {[%emt 0:05:11]} 24. Bxc5 {[%emt 0:04:05]} bxc5 {[%emt 0:00:06]} 25. Bc4 {[%emt 0:02:52]} Bxc4 {[%emt 0:08:17]} 26. Nxc4 {[%emt 0:00:05]} Qh4 {[%emt 0:02:55]} 27. Qe1 {[%emt 0:01:57]} Qg4 {[%emt 0:03:15]} 28. Qxe4 {[%emt 0:01:19]} Rfd8 {[%emt 0:00:08]} 29. Rae1 {[%emt 0:00:36]} Bh6 {[%emt 0:00:44]} 30. Rf3 {[%emt 0:01:12]} Kg7 {[%emt 0:01:19]} 31. Ref1 {[%emt 0:00:34]} Rab8 {[%emt 0:02:03]} 32. Ne3 {[%emt 0:01:41]} Qh4 {[%emt 0:00:25]} 33. Rh3 {[%emt 0:00:06]} Qe7 {[%emt 0:00:10]} 34. Ng4 {[%emt 0:00:28]} Rh8 {[%emt 0:00:24]} 35. Qe2 {[%emt 0:02:04]} Qb7 {[%emt 0:01:45]} 36. Qe3 {[%emt 0:01:03]} Qe7 {[%emt 0:01:21]} 37. Rff3 {[%emt 0:03:13]} Rxb2 {[%emt 0:03:08]} 38. Nxh6 {[%emt 0:00:16]} Qb7 {[%emt 0:00:05]} 39. f5 {[%emt 0:00:23]} Qd5 {[%emt 0:01:14]} 40. fxg6 {[%emt 0:00:20]} Rb1+ {[%emt 0:00:08]} 41. Kh2 {[%emt 0:30:08]} Rb7 {[%emt 0:30:39]} 1-0